{"text_format":"3","workbook":"xlsx","n_sheets":2,"sheets":["Schichtplan für Mitarbeiter","Einrichtung"],"not_rendered":{"defined_names":21},"read":"whole","date_system":"1900"}

{"sheet":"Schichtplan für Mitarbeiter","index":0,"n_rows":296,"n_cols":21,"rows_kept":296,"merged":[[6,1,6,9],[66,1,66,9],[126,1,126,9],[186,1,186,9],[246,1,246,9]]}
["Schichtplan für Mitarbeiter"]
[]
[null,"GESAMT:",null,{"$f":"SUM(4:4)","v":{"v":56,"d":"56.00"}}]
[null,"STUNDEN:",null,{"$f":"MitarbeiterTagStundenGesamt","v":{"v":8,"d":"8.00"}},{"v":8,"d":"8.00"},{"v":8,"d":"8.00"},{"v":8,"d":"8.00"},{"v":8,"d":"8.00"},{"v":8,"d":"8.00"},{"v":8,"d":"8.00"},{"v":0,"d":"0.00"},{"v":0,"d":"0.00"},{"v":0,"d":"0.00"},{"v":0,"d":"0.00"},{"v":0,"d":"0.00"},{"v":0,"d":"0.00"},{"v":0,"d":"0.00"},{"v":0,"d":"0.00"},{"v":0,"d":"0.00"},{"v":0,"d":"0.00"},{"v":0,"d":"0.00"}]
[null,"MITARBEITER:",null,"Hamlin, J.","Müller, B.","Silva, A.","Müller, B.","Hansen, C.","Kerr, M.","Rath, A."]
[]
[null,"2012-07-16T09:00:00"]
[null,{"$f":"B7","v":41106.375},{"$nulls":5},"Urlaub"]
[null,{"$f":"ZeiträumeAnzeige","v":":15"},null,"Rezeption",{"$nulls":3},"Urlaub"]
[null,":30",null,"Rezeption",{"$nulls":3},"Urlaub"]
[null,":45",null,"Rezeption","Vorarbeiter",null,"Kundendienst","Urlaub"]
[null,"10:00",null,"Rezeption","Vorarbeiter",null,"Kundendienst","Urlaub"]
[null,":15",null,"Rezeption","Vorarbeiter",null,"Kundendienst","Urlaub"]
[null,":30",null,"Rezeption","Vorarbeiter",null,"Kundendienst","Urlaub","Buchhaltung"]
[null,":45",null,"Rezeption","Vorarbeiter",null,"Kundendienst","Urlaub","Buchhaltung","Pförtner"]
[null,"11:00",null,"Rezeption","Vorarbeiter",null,"Kundendienst","Urlaub","Buchhaltung","Pförtner"]
[null,":15",null,"Rezeption","Vorarbeiter","Führer","Kundendienst","Urlaub","Buchhaltung","Pförtner"]
[null,":30",null,"Rezeption","Pause","Führer","Kundendienst","Urlaub","Buchhaltung","Pförtner"]
[null,":45",null,"Mittagspause","Vorarbeiter","Führer","Kundendienst","Urlaub","Buchhaltung","Pförtner"]
[null,"12:00",null,"Mittagspause","Vorarbeiter","Führer","Kundendienst","Urlaub","Buchhaltung","Pförtner"]
[null,":15",null,"Rezeption","Vorarbeiter","Führer","Kundendienst","Urlaub","Pause","Pförtner"]
[null,":30",null,"Rezeption","Vorarbeiter","Pause","Kundendienst","Urlaub","Telefondienst","Pause"]
[null,":45",null,"Rezeption","Vorarbeiter","Führer","Kundendienst","Urlaub","Telefondienst","Pförtner"]
[null,"13:00",null,"Rezeption","Vorarbeiter","Führer","Kundendienst","Urlaub","Telefondienst","Pförtner"]
[null,":15",null,"Rezeption","Vorarbeiter","Führer","Mittagspause","Urlaub","Telefondienst","Pförtner"]
[null,":30",null,null,"Vorarbeiter","Führer","Mittagspause","Urlaub","Telefondienst","Pförtner"]
[null,":45",null,null,"Vorarbeiter","Führer","Mittagspause","Urlaub","Mittagspause","Pförtner"]
[null,"14:00",null,"Kassierer","Mittagspause","Führer","Mittagspause","Urlaub","Mittagspause","Pförtner"]
[null,":15",null,"Kassierer","Mittagspause","Führer","Kundendienst","Urlaub","Telefondienst","Pförtner"]
[null,":30",null,"Kassierer","Mittagspause","Mittagspause","Kundendienst","Urlaub","Telefondienst","Mittagspause"]
[null,":45",null,"Kassierer","Mittagspause","Mittagspause","Kundendienst","Urlaub","Telefondienst","Mittagspause"]
[null,"15:00",null,"Kassierer","Sicherheit","Mittagspause","Kundendienst","Urlaub","Telefondienst","Mittagspause"]
[null,":15",null,"Kassierer","Sicherheit","Mittagspause","Kundendienst","Urlaub","Telefondienst","Mittagspause"]
[null,":30",null,"Kassierer","Sicherheit","Führer","Kundendienst","Urlaub","Telefondienst","Schließen"]
[null,":45",null,"Kassierer","Sicherheit","Führer","Kundendienst","Urlaub","Telefondienst","Schließen"]
[null,"16:00",null,"Kassierer","Sicherheit","Führer","Kundendienst","Urlaub","Pause","Schließen"]
[null,":15",null,"Pause","Sicherheit","Führer","Pause","Urlaub","Telefondienst","Schließen"]
[null,":30",null,"Kassierer","Sicherheit","Führer","Kundendienst","Urlaub","Telefondienst","Schließen"]
[null,":45",null,"Kassierer","Sicherheit","Führer","Kundendienst","Urlaub","Telefondienst","Schließen"]
[null,"17:00",null,"Kassierer","Sicherheit","Führer","Kundendienst",null,"Telefondienst","Schließen"]
[null,":15",null,"Kassierer","Sicherheit","Führer","Kundendienst",null,"Telefondienst","Schließen"]
[null,":30",null,"Kassierer","Sicherheit","Führer","Kundendienst",null,"Telefondienst","Schließen"]
[null,":45",null,"Kassierer","Sicherheit","Führer","Kundendienst",null,"Telefondienst","Schließen"]
[null,"18:00",null,"Kassierer","Sicherheit","Führer","Kundendienst",null,"Telefondienst","Schließen"]
[null,":15",null,"Kassierer","Sicherheit","Führer","Kundendienst",null,"Telefondienst","Schließen"]
[null,":30",null,null,"Sicherheit","Führer","Kundendienst",null,"Telefondienst","Schließen"]
[null,":45",null,null,"Sicherheit","Pause","Kundendienst",null,"Telefondienst","Pause"]
[null,"19:00",{"$nulls":3},"Führer",null,null,"Telefondienst","Schließen"]
[null,":15",{"$nulls":3},"Führer",null,null,"Telefondienst","Schließen"]
[null,":30",{"$nulls":3},"Führer",{"$nulls":3},"Schließen"]
[null,":45",{"$nulls":3},"Führer",{"$nulls":3},"Schließen"]
[null,"20:00",{"$nulls":3},"Führer",{"$nulls":3},"Schließen"]
[null,":15",{"$nulls":3},"Führer"]
[null,":30",{"$nulls":3},"Führer"]
[null,":45"]
[null,"21:00"]
[]
[]
[]
[]
["Schichtplan für Mitarbeiter"]
[]
[null,"GESAMT:",null,{"$f":"SUM(64:64)","v":{"v":56,"d":"56.00"}}]
[null,"STUNDEN:",null,{"$f":"MitarbeiterTagStundenGesamt","v":{"v":8,"d":"8.00"}},{"v":8,"d":"8.00"},{"v":8,"d":"8.00"},{"v":8,"d":"8.00"},{"v":8,"d":"8.00"},{"v":8,"d":"8.00"},{"v":8,"d":"8.00"},{"v":0,"d":"0.00"},{"v":0,"d":"0.00"},{"v":0,"d":"0.00"},{"v":0,"d":"0.00"},{"v":0,"d":"0.00"},{"v":0,"d":"0.00"},{"v":0,"d":"0.00"},{"v":0,"d":"0.00"},{"v":0,"d":"0.00"},{"v":0,"d":"0.00"},{"v":0,"d":"0.00"}]
[null,"MITARBEITER:",null,"Hamlin, J.","Müller, B.","Silva, A.","Park, D.","Hansen, C.","Kerr, M.","Rath, A."]
[]
[null,{"$f":"B7+1","v":"2012-07-17T09:00:00"}]
[null,{"$f":"B67","v":41107.375},{"$nulls":5},"Urlaub"]
[null,{"$f":"ZeiträumeAnzeige","v":":15"},null,"Rezeption",{"$nulls":3},"Urlaub"]
[null,":30",null,"Rezeption",{"$nulls":3},"Urlaub"]
[null,":45",null,"Rezeption","Vorarbeiter",null,"Kundendienst","Urlaub"]
[null,"1:00",null,"Rezeption","Vorarbeiter",null,"Kundendienst","Urlaub"]
[null,":15",null,"Rezeption","Vorarbeiter",null,"Kundendienst","Urlaub"]
[null,":30",null,"Rezeption","Vorarbeiter",null,"Kundendienst","Urlaub","Buchhaltung"]
[null,":45",null,"Rezeption","Vorarbeiter",null,"Kundendienst","Urlaub","Buchhaltung","Pförtner"]
[null,"2:00",null,"Rezeption","Vorarbeiter",null,"Kundendienst","Urlaub","Buchhaltung","Pförtner"]
[null,":15",null,"Rezeption","Vorarbeiter","Führer","Kundendienst","Urlaub","Buchhaltung","Pförtner"]
[null,":30",null,"Rezeption","Pause","Führer","Kundendienst","Urlaub","Buchhaltung","Pförtner"]
[null,":45",null,"Mittagspause","Vorarbeiter","Führer","Kundendienst","Urlaub","Buchhaltung","Pförtner"]
[null,"3:00",null,"Mittagspause","Vorarbeiter","Führer","Kundendienst","Urlaub","Buchhaltung","Pförtner"]
[null,":15",null,"Rezeption","Vorarbeiter","Führer","Kundendienst","Urlaub","Pause","Pförtner"]
[null,":30",null,"Rezeption","Vorarbeiter","Pause","Kundendienst","Urlaub","Telefondienst","Pause"]
[null,":45",null,"Rezeption","Vorarbeiter","Führer","Kundendienst","Urlaub","Telefondienst","Pförtner"]
[null,"4:00",null,"Rezeption","Vorarbeiter","Führer","Kundendienst","Urlaub","Telefondienst","Pförtner"]
[null,":15",null,"Rezeption","Vorarbeiter","Führer","Mittagspause","Urlaub","Telefondienst","Pförtner"]
[null,":30",null,null,"Vorarbeiter","Führer","Mittagspause","Urlaub","Telefondienst","Pförtner"]
[null,":45",null,null,"Vorarbeiter","Führer","Mittagspause","Urlaub","Mittagspause","Pförtner"]
[null,"5:00",null,"Kassierer","Mittagspause","Führer","Mittagspause","Urlaub","Mittagspause","Pförtner"]
[null,":15",null,"Kassierer","Mittagspause","Führer","Kundendienst","Urlaub","Telefondienst","Pförtner"]
[null,":30",null,"Kassierer","Mittagspause","Mittagspause","Kundendienst","Urlaub","Telefondienst","Mittagspause"]
[null,":45",null,"Kassierer","Mittagspause","Mittagspause","Kundendienst","Urlaub","Telefondienst","Mittagspause"]
[null,"6:00",null,"Kassierer","Sicherheit","Mittagspause","Kundendienst","Urlaub","Telefondienst","Mittagspause"]
[null,":15",null,"Kassierer","Sicherheit","Mittagspause","Kundendienst","Urlaub","Telefondienst","Mittagspause"]
[null,":30",null,"Kassierer","Sicherheit","Führer","Kundendienst","Urlaub","Telefondienst","Schließen"]
[null,":45",null,"Kassierer","Sicherheit","Führer","Kundendienst","Urlaub","Telefondienst","Schließen"]
[null,"7:00",null,"Kassierer","Sicherheit","Führer","Kundendienst","Urlaub","Pause","Schließen"]
[null,":15",null,"Pause","Sicherheit","Führer","Pause","Urlaub","Telefondienst","Schließen"]
[null,":30",null,"Kassierer","Sicherheit","Führer","Kundendienst","Urlaub","Telefondienst","Schließen"]
[null,":45",null,"Kassierer","Sicherheit","Führer","Kundendienst","Urlaub","Telefondienst","Schließen"]
[null,"8:00",null,"Kassierer","Sicherheit","Führer","Kundendienst",null,"Telefondienst","Schließen"]
[null,":15",null,"Kassierer","Sicherheit","Führer","Kundendienst",null,"Telefondienst","Schließen"]
[null,":30",null,"Kassierer","Sicherheit","Führer","Kundendienst",null,"Telefondienst","Schließen"]
[null,":45",null,"Kassierer","Sicherheit","Führer","Kundendienst",null,"Telefondienst","Schließen"]
[null,"9:00",null,"Kassierer","Sicherheit","Führer","Kundendienst",null,"Telefondienst","Schließen"]
[null,":15",null,"Kassierer","Sicherheit","Führer","Kundendienst",null,"Telefondienst","Schließen"]
[null,":30",null,null,"Sicherheit","Führer","Kundendienst",null,"Telefondienst","Schließen"]
[null,":45",null,null,"Sicherheit","Pause","Kundendienst",null,"Telefondienst","Pause"]
[null,"10:00",{"$nulls":3},"Führer",null,null,"Telefondienst","Schließen"]
[null,":15",{"$nulls":3},"Führer",null,null,"Telefondienst","Schließen"]
[null,":30",{"$nulls":3},"Führer",{"$nulls":3},"Schließen"]
[null,":45",{"$nulls":3},"Führer",{"$nulls":3},"Schließen"]
[null,"11:00",{"$nulls":3},"Führer",{"$nulls":3},"Schließen"]
[null,":15",{"$nulls":3},"Führer"]
[null,":30",{"$nulls":3},"Führer"]
[null,":45"]
[null,"12:00"]
[]
[]
[]
[]
["Schichtplan für Mitarbeiter"]
[]
[null,"GESAMT:",null,{"$f":"SUM(124:124)","v":{"v":56,"d":"56.00"}}]
[null,"STUNDEN:",null,{"$f":"MitarbeiterTagStundenGesamt","v":{"v":8,"d":"8.00"}},{"v":8,"d":"8.00"},{"v":8,"d":"8.00"},{"v":8,"d":"8.00"},{"v":8,"d":"8.00"},{"v":8,"d":"8.00"},{"v":8,"d":"8.00"},{"v":0,"d":"0.00"},{"v":0,"d":"0.00"},{"v":0,"d":"0.00"},{"v":0,"d":"0.00"},{"v":0,"d":"0.00"},{"v":0,"d":"0.00"},{"v":0,"d":"0.00"},{"v":0,"d":"0.00"},{"v":0,"d":"0.00"},{"v":0,"d":"0.00"},{"v":0,"d":"0.00"}]
[null,"MITARBEITER:",null,"Hamlin, J.","Müller, B.","Silva, A.","Park, D.","Hansen, C.","Kerr, M.","Rath, A."]
[]
[null,{"$f":"B67+1","v":"2012-07-18T09:00:00"}]
[null,{"$f":"B127","v":41108.375},{"$nulls":5},"Urlaub"]
[null,{"$f":"ZeiträumeAnzeige","v":":15"},null,"Rezeption",{"$nulls":3},"Urlaub"]
[null,":30",null,"Rezeption",{"$nulls":3},"Urlaub"]
[null,":45",null,"Rezeption","Vorarbeiter",null,"Kundendienst","Urlaub"]
[null,"16:00",null,"Rezeption","Vorarbeiter",null,"Kundendienst","Urlaub"]
[null,":15",null,"Rezeption","Vorarbeiter",null,"Kundendienst","Urlaub"]
[null,":30",null,"Rezeption","Vorarbeiter",null,"Kundendienst","Urlaub","Buchhaltung"]
[null,":45",null,"Rezeption","Vorarbeiter",null,"Kundendienst","Urlaub","Buchhaltung","Pförtner"]
[null,"17:00",null,"Rezeption","Vorarbeiter",null,"Kundendienst","Urlaub","Buchhaltung","Pförtner"]
[null,":15",null,"Rezeption","Vorarbeiter","Führer","Kundendienst","Urlaub","Buchhaltung","Pförtner"]
[null,":30",null,"Rezeption","Pause","Führer","Kundendienst","Urlaub","Buchhaltung","Pförtner"]
[null,":45",null,"Mittagspause","Vorarbeiter","Führer","Kundendienst","Urlaub","Buchhaltung","Pförtner"]
[null,"18:00",null,"Mittagspause","Vorarbeiter","Führer","Kundendienst","Urlaub","Buchhaltung","Pförtner"]
[null,":15",null,"Rezeption","Vorarbeiter","Führer","Kundendienst","Urlaub","Pause","Pförtner"]
[null,":30",null,"Rezeption","Vorarbeiter","Pause","Kundendienst","Urlaub","Telefondienst","Pause"]
[null,":45",null,"Rezeption","Vorarbeiter","Führer","Kundendienst","Urlaub","Telefondienst","Pförtner"]
[null,"19:00",null,"Rezeption","Vorarbeiter","Führer","Kundendienst","Urlaub","Telefondienst","Pförtner"]
[null,":15",null,"Rezeption","Vorarbeiter","Führer","Mittagspause","Urlaub","Telefondienst","Pförtner"]
[null,":30",null,null,"Vorarbeiter","Führer","Mittagspause","Urlaub","Telefondienst","Pförtner"]
[null,":45",null,null,"Vorarbeiter","Führer","Mittagspause","Urlaub","Mittagspause","Pförtner"]
[null,"20:00",null,"Kassierer","Mittagspause","Führer","Mittagspause","Urlaub","Mittagspause","Pförtner"]
[null,":15",null,"Kassierer","Mittagspause","Führer","Kundendienst","Urlaub","Telefondienst","Pförtner"]
[null,":30",null,"Kassierer","Mittagspause","Mittagspause","Kundendienst","Urlaub","Telefondienst","Mittagspause"]
[null,":45",null,"Kassierer","Mittagspause","Mittagspause","Kundendienst","Urlaub","Telefondienst","Mittagspause"]
[null,"21:00",null,"Kassierer","Sicherheit","Mittagspause","Kundendienst","Urlaub","Telefondienst","Mittagspause"]
[null,":15",null,"Kassierer","Sicherheit","Mittagspause","Kundendienst","Urlaub","Telefondienst","Mittagspause"]
[null,":30",null,"Kassierer","Sicherheit","Führer","Kundendienst","Urlaub","Telefondienst","Schließen"]
[null,":45",null,"Kassierer","Sicherheit","Führer","Kundendienst","Urlaub","Telefondienst","Schließen"]
[null,"22:00",null,"Kassierer","Sicherheit","Führer","Kundendienst","Urlaub","Pause","Schließen"]
[null,":15",null,"Pause","Sicherheit","Führer","Pause","Urlaub","Telefondienst","Schließen"]
[null,":30",null,"Kassierer","Sicherheit","Führer","Kundendienst","Urlaub","Telefondienst","Schließen"]
[null,":45",null,"Kassierer","Sicherheit","Führer","Kundendienst","Urlaub","Telefondienst","Schließen"]
[null,"23:00",null,"Kassierer","Sicherheit","Führer","Kundendienst",null,"Telefondienst","Schließen"]
[null,":15",null,"Kassierer","Sicherheit","Führer","Kundendienst",null,"Telefondienst","Schließen"]
[null,":30",null,"Kassierer","Sicherheit","Führer","Kundendienst",null,"Telefondienst","Schließen"]
[null,":45",null,"Kassierer","Sicherheit","Führer","Kundendienst",null,"Telefondienst","Schließen"]
[null,"0:00",null,"Kassierer","Sicherheit","Führer","Kundendienst",null,"Telefondienst","Schließen"]
[null,":15",null,"Kassierer","Sicherheit","Führer","Kundendienst",null,"Telefondienst","Schließen"]
[null,":30",null,null,"Sicherheit","Führer","Kundendienst",null,"Telefondienst","Schließen"]
[null,":45",null,null,"Sicherheit","Pause","Kundendienst",null,"Telefondienst","Pause"]
[null,"1:00",{"$nulls":3},"Führer",null,null,"Telefondienst","Schließen"]
[null,":15",{"$nulls":3},"Führer",null,null,"Telefondienst","Schließen"]
[null,":30",{"$nulls":3},"Führer",{"$nulls":3},"Schließen"]
[null,":45",{"$nulls":3},"Führer",{"$nulls":3},"Schließen"]
[null,"2:00",{"$nulls":3},"Führer",{"$nulls":3},"Schließen"]
[null,":15",{"$nulls":3},"Führer"]
[null,":30",{"$nulls":3},"Führer"]
[null,":45"]
[null,"3:00"]
[]
[]
[]
[]
["Schichtplan für Mitarbeiter"]
[]
[null,"GESAMT:",null,{"$f":"SUM(184:184)","v":{"v":56,"d":"56.00"}}]
[null,"STUNDEN:",null,{"$f":"MitarbeiterTagStundenGesamt","v":{"v":8,"d":"8.00"}},{"v":8,"d":"8.00"},{"v":8,"d":"8.00"},{"v":8,"d":"8.00"},{"v":8,"d":"8.00"},{"v":8,"d":"8.00"},{"v":8,"d":"8.00"},{"v":0,"d":"0.00"},{"v":0,"d":"0.00"},{"v":0,"d":"0.00"},{"v":0,"d":"0.00"},{"v":0,"d":"0.00"},{"v":0,"d":"0.00"},{"v":0,"d":"0.00"},{"v":0,"d":"0.00"},{"v":0,"d":"0.00"},{"v":0,"d":"0.00"},{"v":0,"d":"0.00"}]
[null,"MITARBEITER:",null,"Hamlin, J.","Müller, B.","Silva, A.","Park, D.","Hansen, C.","Kerr, M.","Rath, A."]
[]
[null,{"$f":"B127+1","v":"2012-07-19T09:00:00"}]
[null,{"$f":"B187","v":41109.375},{"$nulls":5},"Urlaub"]
[null,{"$f":"ZeiträumeAnzeige","v":":15"},null,"Rezeption",{"$nulls":3},"Urlaub"]
[null,":30",null,"Rezeption",{"$nulls":3},"Urlaub"]
[null,":45",null,"Rezeption","Vorarbeiter",null,"Kundendienst","Urlaub"]
[null,"7:00",null,"Rezeption","Vorarbeiter",null,"Kundendienst","Urlaub"]
[null,":15",null,"Rezeption","Vorarbeiter",null,"Kundendienst","Urlaub"]
[null,":30",null,"Rezeption","Vorarbeiter",null,"Kundendienst","Urlaub","Buchhaltung"]
[null,":45",null,"Rezeption","Vorarbeiter",null,"Kundendienst","Urlaub","Buchhaltung","Pförtner"]
[null,"8:00",null,"Rezeption","Vorarbeiter",null,"Kundendienst","Urlaub","Buchhaltung","Pförtner"]
[null,":15",null,"Rezeption","Vorarbeiter","Führer","Kundendienst","Urlaub","Buchhaltung","Pförtner"]
[null,":30",null,"Rezeption","Pause","Führer","Kundendienst","Urlaub","Buchhaltung","Pförtner"]
[null,":45",null,"Mittagspause","Vorarbeiter","Führer","Kundendienst","Urlaub","Buchhaltung","Pförtner"]
[null,"9:00",null,"Mittagspause","Vorarbeiter","Führer","Kundendienst","Urlaub","Buchhaltung","Pförtner"]
[null,":15",null,"Rezeption","Vorarbeiter","Führer","Kundendienst","Urlaub","Pause","Pförtner"]
[null,":30",null,"Rezeption","Vorarbeiter","Pause","Kundendienst","Urlaub","Telefondienst","Pause"]
[null,":45",null,"Rezeption","Vorarbeiter","Führer","Kundendienst","Urlaub","Telefondienst","Pförtner"]
[null,"10:00",null,"Rezeption","Vorarbeiter","Führer","Kundendienst","Urlaub","Telefondienst","Pförtner"]
[null,":15",null,"Rezeption","Vorarbeiter","Führer","Mittagspause","Urlaub","Telefondienst","Pförtner"]
[null,":30",null,null,"Vorarbeiter","Führer","Mittagspause","Urlaub","Telefondienst","Pförtner"]
[null,":45",null,null,"Vorarbeiter","Führer","Mittagspause","Urlaub","Mittagspause","Pförtner"]
[null,"11:00",null,"Kassierer","Mittagspause","Führer","Mittagspause","Urlaub","Mittagspause","Pförtner"]
[null,":15",null,"Kassierer","Mittagspause","Führer","Kundendienst","Urlaub","Telefondienst","Pförtner"]
[null,":30",null,"Kassierer","Mittagspause","Mittagspause","Kundendienst","Urlaub","Telefondienst","Mittagspause"]
[null,":45",null,"Kassierer","Mittagspause","Mittagspause","Kundendienst","Urlaub","Telefondienst","Mittagspause"]
[null,"12:00",null,"Kassierer","Sicherheit","Mittagspause","Kundendienst","Urlaub","Telefondienst","Mittagspause"]
[null,":15",null,"Kassierer","Sicherheit","Mittagspause","Kundendienst","Urlaub","Telefondienst","Mittagspause"]
[null,":30",null,"Kassierer","Sicherheit","Führer","Kundendienst","Urlaub","Telefondienst","Schließen"]
[null,":45",null,"Kassierer","Sicherheit","Führer","Kundendienst","Urlaub","Telefondienst","Schließen"]
[null,"13:00",null,"Kassierer","Sicherheit","Führer","Kundendienst","Urlaub","Pause","Schließen"]
[null,":15",null,"Pause","Sicherheit","Führer","Pause","Urlaub","Telefondienst","Schließen"]
[null,":30",null,"Kassierer","Sicherheit","Führer","Kundendienst","Urlaub","Telefondienst","Schließen"]
[null,":45",null,"Kassierer","Sicherheit","Führer","Kundendienst","Urlaub","Telefondienst","Schließen"]
[null,"14:00",null,"Kassierer","Sicherheit","Führer","Kundendienst",null,"Telefondienst","Schließen"]
[null,":15",null,"Kassierer","Sicherheit","Führer","Kundendienst",null,"Telefondienst","Schließen"]
[null,":30",null,"Kassierer","Sicherheit","Führer","Kundendienst",null,"Telefondienst","Schließen"]
[null,":45",null,"Kassierer","Sicherheit","Führer","Kundendienst",null,"Telefondienst","Schließen"]
[null,"15:00",null,"Kassierer","Sicherheit","Führer","Kundendienst",null,"Telefondienst","Schließen"]
[null,":15",null,"Kassierer","Sicherheit","Führer","Kundendienst",null,"Telefondienst","Schließen"]
[null,":30",null,null,"Sicherheit","Führer","Kundendienst",null,"Telefondienst","Schließen"]
[null,":45",null,null,"Sicherheit","Pause","Kundendienst",null,"Telefondienst","Pause"]
[null,"16:00",{"$nulls":3},"Führer",null,null,"Telefondienst","Schließen"]
[null,":15",{"$nulls":3},"Führer",null,null,"Telefondienst","Schließen"]
[null,":30",{"$nulls":3},"Führer",{"$nulls":3},"Schließen"]
[null,":45",{"$nulls":3},"Führer",{"$nulls":3},"Schließen"]
[null,"17:00",{"$nulls":3},"Führer",{"$nulls":3},"Schließen"]
[null,":15",{"$nulls":3},"Führer"]
[null,":30",{"$nulls":3},"Führer"]
[null,":45"]
[null,"18:00"]
[]
[]
[]
[]
["Schichtplan für Mitarbeiter"]
[]
[null,"GESAMT:",null,{"$f":"SUM(244:244)","v":{"v":56,"d":"56.00"}}]
[null,"STUNDEN:",null,{"$f":"MitarbeiterTagStundenGesamt","v":{"v":8,"d":"8.00"}},{"v":8,"d":"8.00"},{"v":8,"d":"8.00"},{"v":8,"d":"8.00"},{"v":8,"d":"8.00"},{"v":8,"d":"8.00"},{"v":8,"d":"8.00"},{"v":0,"d":"0.00"},{"v":0,"d":"0.00"},{"v":0,"d":"0.00"},{"v":0,"d":"0.00"},{"v":0,"d":"0.00"},{"v":0,"d":"0.00"},{"v":0,"d":"0.00"},{"v":0,"d":"0.00"},{"v":0,"d":"0.00"},{"v":0,"d":"0.00"},{"v":0,"d":"0.00"}]
[null,"MITARBEITER:",null,"Hamlin, J.","Müller, B.","Silva, A.","Park, D.","Hansen, C.","Kerr, M.","Rath, A."]
[]
[null,{"$f":"B187+1","v":"2012-07-20T09:00:00"}]
[null,{"$f":"B247","v":41110.375},{"$nulls":5},"Urlaub"]
[null,{"$f":"ZeiträumeAnzeige","v":":15"},null,"Rezeption",{"$nulls":3},"Urlaub"]
[null,":30",null,"Rezeption",{"$nulls":3},"Urlaub"]
[null,":45",null,"Rezeption","Vorarbeiter",null,"Kundendienst","Urlaub"]
[null,"22:00",null,"Rezeption","Vorarbeiter",null,"Kundendienst","Urlaub"]
[null,":15",null,"Rezeption","Vorarbeiter",null,"Kundendienst","Urlaub"]
[null,":30",null,"Rezeption","Vorarbeiter",null,"Kundendienst","Urlaub","Buchhaltung"]
[null,":45",null,"Rezeption","Vorarbeiter",null,"Kundendienst","Urlaub","Buchhaltung","Pförtner"]
[null,"23:00",null,"Rezeption","Vorarbeiter",null,"Kundendienst","Urlaub","Buchhaltung","Pförtner"]
[null,":15",null,"Rezeption","Vorarbeiter","Führer","Kundendienst","Urlaub","Buchhaltung","Pförtner"]
[null,":30",null,"Rezeption","Pause","Führer","Kundendienst","Urlaub","Buchhaltung","Pförtner"]
[null,":45",null,"Mittagspause","Vorarbeiter","Führer","Kundendienst","Urlaub","Buchhaltung","Pförtner"]
[null,"0:00",null,"Mittagspause","Vorarbeiter","Führer","Kundendienst","Urlaub","Buchhaltung","Pförtner"]
[null,":15",null,"Rezeption","Vorarbeiter","Führer","Kundendienst","Urlaub","Pause","Pförtner"]
[null,":30",null,"Rezeption","Vorarbeiter","Pause","Kundendienst","Urlaub","Telefondienst","Pause"]
[null,":45",null,"Rezeption","Vorarbeiter","Führer","Kundendienst","Urlaub","Telefondienst","Pförtner"]
[null,"1:00",null,"Rezeption","Vorarbeiter","Führer","Kundendienst","Urlaub","Telefondienst","Pförtner"]
[null,":15",null,"Rezeption","Vorarbeiter","Führer","Mittagspause","Urlaub","Telefondienst","Pförtner"]
[null,":30",null,null,"Vorarbeiter","Führer","Mittagspause","Urlaub","Telefondienst","Pförtner"]
[null,":45",null,null,"Vorarbeiter","Führer","Mittagspause","Urlaub","Mittagspause","Pförtner"]
[null,"2:00",null,"Kassierer","Mittagspause","Führer","Mittagspause","Urlaub","Mittagspause","Pförtner"]
[null,":15",null,"Kassierer","Mittagspause","Führer","Kundendienst","Urlaub","Telefondienst","Pförtner"]
[null,":30",null,"Kassierer","Mittagspause","Mittagspause","Kundendienst","Urlaub","Telefondienst","Mittagspause"]
[null,":45",null,"Kassierer","Mittagspause","Mittagspause","Kundendienst","Urlaub","Telefondienst","Mittagspause"]
[null,"3:00",null,"Kassierer","Sicherheit","Mittagspause","Kundendienst","Urlaub","Telefondienst","Mittagspause"]
[null,":15",null,"Kassierer","Sicherheit","Mittagspause","Kundendienst","Urlaub","Telefondienst","Mittagspause"]
[null,":30",null,"Kassierer","Sicherheit","Führer","Kundendienst","Urlaub","Telefondienst","Schließen"]
[null,":45",null,"Kassierer","Sicherheit","Führer","Kundendienst","Urlaub","Telefondienst","Schließen"]
[null,"4:00",null,"Kassierer","Sicherheit","Führer","Kundendienst","Urlaub","Pause","Schließen"]
[null,":15",null,"Pause","Sicherheit","Führer","Pause","Urlaub","Telefondienst","Schließen"]
[null,":30",null,"Kassierer","Sicherheit","Führer","Kundendienst","Urlaub","Telefondienst","Schließen"]
[null,":45",null,"Kassierer","Sicherheit","Führer","Kundendienst","Urlaub","Telefondienst","Schließen"]
[null,"5:00",null,"Kassierer","Sicherheit","Führer","Kundendienst",null,"Telefondienst","Schließen"]
[null,":15",null,"Kassierer","Sicherheit","Führer","Kundendienst",null,"Telefondienst","Schließen"]
[null,":30",null,"Kassierer","Sicherheit","Führer","Kundendienst",null,"Telefondienst","Schließen"]
[null,":45",null,"Kassierer","Sicherheit","Führer","Kundendienst",null,"Telefondienst","Schließen"]
[null,"6:00",null,"Kassierer","Sicherheit","Führer","Kundendienst",null,"Telefondienst","Schließen"]
[null,":15",null,"Kassierer","Sicherheit","Führer","Kundendienst",null,"Telefondienst","Schließen"]
[null,":30",null,null,"Sicherheit","Führer","Kundendienst",null,"Telefondienst","Schließen"]
[null,":45",null,null,"Sicherheit","Pause","Kundendienst",null,"Telefondienst","Pause"]
[null,"7:00",{"$nulls":3},"Führer",null,null,"Telefondienst","Schließen"]
[null,":15",{"$nulls":3},"Führer",null,null,"Telefondienst","Schließen"]
[null,":30",{"$nulls":3},"Führer",{"$nulls":3},"Schließen"]
[null,":45",{"$nulls":3},"Führer",{"$nulls":3},"Schließen"]
[null,"8:00",{"$nulls":3},"Führer",{"$nulls":3},"Schließen"]
[null,":15",{"$nulls":3},"Führer"]
[null,":30",{"$nulls":3},"Führer"]
[null,":45"]
[null,"9:00"]

{"sheet":"Einrichtung","index":1,"n_rows":26,"n_cols":7,"rows_kept":26}
[null,"Einrichtung"]
[]
[]
[null,"EINGABE ERHÖHUNG \nPRO STUNDE",4]
[]
[]
[]
[]
[]
[null,"Mitarbeiter",null,"Arbeitsplatz/arbeitsfreie Zeit","Farbe","Bezahlt","Ganztätig"]
[null,"Hamlin, J.",null,"Mittagspause",1,false,false]
[null,"Hansen, C.",null,"Pause",1,false,false]
[null,"Kerr, M.",null,"Arbeitsfrei",1,false,true]
[null,"Levin, D.",null,"Krank",1,false,true]
[null,"Müller, B.",null,"Tag zur privaten Verfügung",1,true,true]
[null,"Park, D.",null,"Urlaub",1,true,true]
[null,"Rath, A.",null,"Rezeption",2,true,false]
[null,"Silva, A.",null,"Kassierer",3,true,false]
[{"$nulls":3},"Vorarbeiter",4,true,false]
[{"$nulls":3},"Führer",5,true,false]
[{"$nulls":3},"Kundendienst",6,true,false]
[{"$nulls":3},"Telefondienst",7,true,false]
[{"$nulls":3},"Sicherheit",8,true,false]
[{"$nulls":3},"Pförtner",9,true,false]
[{"$nulls":3},"Buchhaltung",10,true,false]
[{"$nulls":3},"Schließen",11,true,false]